fUSD/lending_fUSD_20240104
["ID","MTS","AMOUNT","RATE_DAILY","PERIOD"]
[310205799,1704400281627,-774.31,0.0003452,2]
[310205800,1704400281638,-500.0,0.0003452,2]
[310205801,1704400281648,-1178.66,0.0003452,2]
[310205802,1704400281659,-2705.72,0.0003452,2]
[310205803,1704400281669,-500.0,0.0003452,2]
[310205804,1704400281680,-540.01,0.0003452,2]
[310205805,1704400281691,-500.0,0.0003452,2]
[310205806,1704400281702,-800.68,0.0003452,2]
[310205807,1704400281714,-683.02,0.0003452,2]
[310205808,1704400281725,-1033.15,0.0003452,2]
[310205809,1704400281737,-500.0,0.0003452,2]
[310205810,1704400281747,-500.0,0.0003452,2]
[310205811,1704400281759,-500.0,0.0003452,2]
[310205812,1704400281770,-664.5,0.0003452,2]
[310205813,1704400281782,-5429.5,0.0003452,2]
[310205814,1704400281793,-787.99,0.0003452,2]
[310205815,1704400281803,-500.0,0.0003452,2]
[310205816,1704400281813,-500.0,0.0003452,2]
[310205817,1704400281824,-1185.9,0.0003452,2]
[310205818,1704400281834,-500.0,0.0003452,2]
[310205819,1704400281844,-502.99,0.0003452,2]
[310205820,1704400281854,-803.67,0.0003452,2]
[310205821,1704400281865,-500.0,0.0003452,2]
[310205822,1704400281875,-703.08,0.0003452,2]
[310205823,1704400281885,-931.91,0.0003452,2]
[310205824,1704400281894,-500.0,0.0003452,2]
[310205825,1704400281905,-500.0,0.0003452,2]
[310205826,1704400281914,-3045.47,0.0003452,2]
[310205827,1704400281924,-500.0,0.0003452,2]
[310205828,1704400281934,-500.0,0.0003452,2]
[310205829,1704400281944,-924.28,0.0003452,2]
[310205830,1704400281954,-612.45,0.0003452,2]
[310205831,1704400281964,-500.0,0.0003452,2]
[310205832,1704400281974,-1664.58,0.0003452,2]
[310205833,1704400281985,-1719.17,0.0003452,2]
[310205834,1704400281994,-500.0,0.0003452,2]
[310205835,1704400282004,-650.67,0.0003452,2]
[310205836,1704400282015,-837.7,0.0003452,2]
[310205837,1704400282025,-651.85,0.0003452,2]
[310205838,1704400282035,-1763.88,0.0003452,2]
[310205839,1704400282046,-500.0,0.0003452,2]
[310205840,1704400282056,-500.0,0.0003452,2]
[310205841,1704400282066,-5455.26,0.0003452,2]
[310205842,1704400282076,-595.32,0.0003452,2]
[310205843,1704400282086,-500.0,0.0003452,2]
[310205844,1704400282096,-500.0,0.0003452,2]
[310205845,1704400282106,-473.66401561,0.0003452,2]
[310205846,1704400282115,-864.85,0.0003452,2]
[310205847,1704400282125,-1546.03,0.0003452,2]
[310205848,1704400282135,-500.0,0.0003452,2]
[310205849,1704400282146,-618.44,0.0003452,2]
[310205850,1704400282157,-500.0,0.0003452,2]
[310205851,1704400282166,-1928.75,0.0003452,2]
[310205852,1704400282176,-500.0,0.0003452,2]
[310205853,1704400282185,-500.0,0.0003452,2]
[310205854,1704400282195,-575.7,0.0003452,2]
[310205855,1704400282205,-589.02,0.0003452,2]
[310205856,1704400282215,-2873.21,0.0003452,2]
[310205857,1704400282225,-500.0,0.0003452,2]
[310205858,1704400282236,-500.0,0.0003452,2]
[310205859,1704400282245,-501.82,0.0003452,2]
[310205860,1704400282255,-500.0,0.0003452,2]
[310205861,1704400282265,-500.0,0.0003452,2]
[310205862,1704400282275,-500.0,0.0003452,2]
[310205863,1704400282284,-500.0,0.0003452,2]
[310205864,1704400282295,-902.0,0.0003452,2]
[310205865,1704400282304,-500.0,0.0003452,2]
[310205866,1704400282314,-1565.07,0.0003452,2]
[310205867,1704400282326,-324.66647618,0.0003452,2]
[310205868,1704400282336,-1472.89,0.0003452,2]
[310205869,1704400282346,-6496.65,0.0003452,2]
[310205870,1704400282357,-500.0,0.0003452,2]
[310205871,1704400282368,-864.86,0.0003452,2]
[310205872,1704400282378,-500.0,0.0003452,2]
[310205873,1704400282389,-500.0,0.0003452,2]
[310205874,1704400282399,-500.0,0.0003452,2]
[310205875,1704400282410,-500.0,0.0003452,2]
[310205876,1704400282421,-500.0,0.0003452,2]
[310205877,1704400282433,-500.0,0.0003452,2]
[310205878,1704400282442,-500.0,0.0003452,2]
[310205879,1704400282452,-659.36,0.0003452,2]
[310205880,1704400282461,-539.42,0.0003452,2]
[310205881,1704400282470,-2834.51,0.0003452,2]
[310205882,1704400282480,-500.0,0.0003452,2]
[310205883,1704400282493,-535.67,0.0003452,2]
[310205884,1704400282503,-500.0,0.0003452,2]
[310205885,1704400282513,-772.31,0.0003452,2]
[310205886,1704400282522,-1511.83,0.0003452,2]
[310205887,1704400282532,-730.25,0.0003452,2]
[310205888,1704400282541,-500.0,0.0003452,2]
[310205889,1704400282551,-500.0,0.0003452,2]
[310205890,1704400282560,-597.99,0.0003452,2]
[310205891,1704400282570,-1373.46,0.0003452,2]
[310205892,1704400282579,-500.0,0.0003452,2]
[310205893,1704400282589,-500.0,0.0003452,2]
[310205894,1704400282600,-1411.58,0.0003452,2]
[310205895,1704400282610,-500.0,0.0003452,2]
[310205896,1704400282620,-844.92,0.0003452,2]
[310205897,1704400282631,-1122.72,0.0003452,2]
[310205898,1704400282641,-500.0,0.0003452,2]
[310205899,1704400282653,-500.0,0.0003452,2]
[310205900,1704400282664,-500.0,0.0003452,2]
[310205901,1704400282675,-938.79,0.0003452,2]
[310205902,1704400282685,-700.27,0.0003452,2]
[310205903,1704400282696,-500.0,0.0003452,2]
[310205904,1704400282707,-500.0,0.0003452,2]
[310205905,1704400282718,-2603.65,0.0003452,2]
[310205906,1704400282728,-500.0,0.0003452,2]
[310205907,1704400282737,-500.0,0.0003452,2]
[310205908,1704400282747,-500.0,0.0003452,2]
[310205909,1704400282758,-690.56,0.0003452,2]
[310205910,1704400282768,-1114.57,0.0003452,2]
[310205911,1704400282779,-500.0,0.0003452,2]
[310205912,1704400282790,-1863.03,0.0003452,2]
[310205913,1704400282800,-500.0,0.0003452,2]
[310205914,1704400282810,-625.26,0.0003452,2]
[310205915,1704400282821,-286.56048413,0.0003452,2]
[310205916,1704400282831,-500.0,0.0003452,2]
[310205917,1704400282842,-1822.1,0.0003452,2]
[310205918,1704400282852,-500.0,0.0003452,2]
[310205919,1704400282863,-500.0,0.0003452,2]
[310205920,1704400282873,-524.64,0.0003452,2]
[310205921,1704400282883,-715.91,0.0003452,2]
[310205922,1704400282893,-1359.04,0.0003452,2]
[310205923,1704400282903,-5673.8,0.00034521,2]
[310205924,1704400282913,-412.93661815,0.00034543,7]
[310205925,1704400282923,-153.68,0.000346,2]
[310205926,1704400282933,-153.68,0.000346,2]
[310205927,1704400282943,-153.68,0.000346,2]
[310205928,1704400282953,-153.68,0.000346,2]
[310205929,1704400282963,-153.68,0.000346,2]
[310205930,1704400282973,-153.68,0.000346,2]
[310205931,1704400282983,-153.68,0.000346,2]
[310205932,1704400282993,-241.18,0.00034627,2]
[310205933,1704400283004,-180.0,0.00034658,2]
[310205934,1704400283014,-500.0,0.00034793,2]
[310205935,1704400283024,-1013.2,0.00034793,2]
[310205936,1704400283033,-241.18,0.00034793,2]
[310205937,1704400283043,-6829.27155038,0.00034794,2]
[310205938,1704400283054,-1027.40021224,0.00034794,3]
[310205939,1704400283063,-500.0,0.00034794,2]
[310205940,1704400283073,-500.0,0.00034794,2]
[310205941,1704400283083,-500.0,0.00034794,2]
[310205942,1704400283093,-500.0,0.00034794,2]
[310205943,1704400283102,-500.0,0.00034794,2]
[310205944,1704400283112,-500.0,0.00034794,2]
[310205945,1704400283122,-500.0,0.00034794,2]
[310205946,1704400283132,-500.0,0.00034794,2]
[310205947,1704400283142,-500.0,0.00034794,2]
[310205948,1704400283151,-500.0,0.00034794,2]
[310205949,1704400283161,-500.0,0.00034794,2]
[310205950,1704400283171,-500.0,0.00034794,2]
[310205951,1704400283181,-500.0,0.00034794,2]
[310205952,1704400283190,-500.0,0.00034794,2]
[310205953,1704400283200,-208.33,0.00034794,2]
[310205954,1704400283210,-502.68540461,0.00034794,2]
[310205955,1704400283220,-500.0,0.00034794,2]
[310205956,1704400283230,-500.0,0.00034794,2]
[310205957,1704400283240,-340.6,0.00034794,2]
[310205958,1704400283249,-500.0,0.00034794,2]
[310205959,1704400283259,-500.0,0.00034794,2]
[310205960,1704400283269,-809.33,0.00034794,2]
[310205961,1704400283279,-500.0,0.00034794,2]
[310205962,1704400283289,-500.0,0.00034794,2]
[310205963,1704400283299,-500.0,0.00034794,2]
[310205964,1704400283308,-500.0,0.00034794,2]
[310205965,1704400283318,-500.0,0.00034794,2]
[310205966,1704400283328,-500.0,0.00034794,2]
[310205967,1704400283337,-500.0,0.00034794,2]
[310205968,1704400283347,-500.0,0.00034794,2]
[310205969,1704400283357,-500.0,0.00034794,2]
[310205970,1704400283366,-500.0,0.00034794,2]
[310205971,1704400283376,-570.2,0.00034794,2]
[310205972,1704400283594,-500.0,0.00034794,2]
[310205973,1704400283604,-500.0,0.00034794,2]
[310205974,1704400283615,-500.0,0.00034794,2]
[310205975,1704400283625,-500.0,0.00034794,2]
[310205976,1704400283635,-500.0,0.00034794,2]
[310205977,1704400283645,-511.41,0.00034794,2]
[310205978,1704400283655,-500.0,0.00034794,2]
[310205979,1704400283665,-500.0,0.00034794,2]
[310205980,1704400283675,-500.0,0.00034794,2]
[310205981,1704400283685,-500.0,0.00034794,2]
[310205982,1704400283695,-500.0,0.00034794,2]
[310205983,1704400283704,-500.0,0.00034794,2]
[310205984,1704400283714,-500.0,0.00034794,2]
[310205985,1704400283724,-826.26,0.00034794,2]
[310205986,1704400283735,-500.0,0.00034794,2]
[310205987,1704400283744,-500.0,0.00034794,2]
[310205988,1704400283753,-1785.82,0.00034794,2]
[310205989,1704400283764,-541.66,0.00034794,2]
[310205990,1704400283774,-500.0,0.00034794,2]
[310205991,1704400283784,-500.0,0.00034794,2]
[310205992,1704400283796,-702.0,0.00034794,2]
[310205993,1704400283807,-500.0,0.00034794,2]
[310205994,1704400283818,-500.0,0.00034794,2]
[310205995,1704400283828,-500.0,0.00034794,2]
[310205996,1704400283838,-713.92,0.00034794,2]
[310205997,1704400283848,-508.08,0.00034794,2]
[310205998,1704400283858,-500.0,0.00034794,2]
[310205999,1704400283870,-500.0,0.00034794,2]
[310206000,1704400283880,-500.0,0.00034794,2]
[310206001,1704400283891,-605.7,0.00034794,2]
[310206002,1704400283901,-500.0,0.00034794,2]
[310206003,1704400283912,-500.0,0.00034794,2]
[310206004,1704400283922,-500.0,0.00034794,2]
[310206005,1704400283931,-617.34,0.00034794,2]
[310206006,1704400283941,-500.0,0.00034794,2]
[310206007,1704400283951,-1053.81,0.00034794,2]
[310206008,1704400283961,-500.0,0.00034794,2]
[310206009,1704400283971,-500.0,0.00034794,2]
[310206010,1704400283981,-500.0,0.00034794,2]
[310206011,1704400283991,-500.0,0.00034794,2]
[310206012,1704400284001,-500.0,0.00034794,2]
[310206013,1704400284012,-500.0,0.00034794,2]
[310206014,1704400284022,-500.0,0.00034794,2]
[310206015,1704400284033,-500.0,0.00034794,2]
[310206016,1704400284199,-637.91,0.00034794,2]
[310206017,1704400284215,-642.96,0.00034794,2]
[310206018,1704400284224,-500.0,0.00034794,2]
[310206019,1704400284234,-500.0,0.00034794,2]
[310206020,1704400284243,-500.0,0.00034794,2]
[310206021,1704400284253,-500.0,0.00034794,2]
[310206022,1704400284262,-500.0,0.00034794,2]
[310206023,1704400284271,-500.0,0.00034794,2]
[310206024,1704400284280,-500.0,0.00034794,2]
[310206025,1704400284290,-500.0,0.00034794,2]
[310206026,1704400284300,-500.0,0.00034794,2]
[310206027,1704400284309,-500.0,0.00034794,2]
[310206028,1704400284319,-500.0,0.00034794,2]
[310206029,1704400284329,-500.0,0.00034794,2]
[310206030,1704400284339,-500.0,0.00034794,2]
[310206031,1704400284349,-500.0,0.00034794,2]
[310206032,1704400284359,-500.0,0.00034794,2]
[310206033,1704400284368,-500.0,0.00034794,2]
[310206034,1704400284378,-500.0,0.00034794,2]
[310206035,1704400284387,-500.0,0.00034794,2]
[310206036,1704400284397,-583.92,0.00034794,2]
[310206037,1704400284406,-500.0,0.00034794,2]
[310206038,1704400284415,-500.0,0.00034794,2]
[310206039,1704400284424,-500.0,0.00034794,2]
[310206040,1704400284434,-500.0,0.00034794,2]
[310206041,1704400284443,-1262.62,0.00034794,2]
[310206042,1704400284453,-644.12,0.00034794,2]
[310206043,1704400284462,-500.0,0.00034794,2]
[310206044,1704400284471,-500.0,0.00034794,2]
[310206045,1704400284480,-500.0,0.00034794,2]
[310206046,1704400284490,-500.0,0.00034794,2]
[310206047,1704400284499,-500.0,0.00034794,2]
[310206048,1704400284508,-500.0,0.00034794,2]
[310206049,1704400284517,-500.0,0.00034794,2]
[310206050,1704400284527,-501.37,0.00034794,2]
[310206051,1704400284537,-500.0,0.00034794,2]
[310206052,1704400284546,-500.0,0.00034794,2]
[310206053,1704400284555,-500.0,0.00034794,2]
[310206054,1704400284565,-511.59,0.00034794,2]
[310206055,1704400284573,-500.0,0.00034794,2]
[310206056,1704400284583,-500.0,0.00034794,2]
[310206057,1704400284592,-500.0,0.00034794,2]
[310206058,1704400284601,-500.0,0.00034794,2]
[310206059,1704400284610,-500.0,0.00034794,2]
[310206060,1704400284620,-500.0,0.00034794,2]
[310206061,1704400284629,-500.0,0.00034794,2]
[310206062,1704400284638,-500.0,0.00034794,2]
[310206063,1704400284648,-500.0,0.00034794,2]
[310206064,1704400284658,-500.0,0.00034794,2]
[310206065,1704400284667,-500.0,0.00034794,2]
[310206066,1704400284677,-159.65,0.00034794,2]
[310206067,1704400284686,-500.0,0.00034794,2]
[310206068,1704400284695,-500.0,0.00034794,2]
[310206069,1704400284706,-500.0,0.00034794,2]
[310206070,1704400284715,-984.97,0.00034794,2]
[310206071,1704400284724,-500.0,0.00034794,2]
[310206072,1704400284733,-500.0,0.00034794,2]
[310206073,1704400284742,-500.0,0.00034794,2]
[310206074,1704400284751,-500.0,0.00034794,2]
[310206075,1704400284761,-500.0,0.00034794,2]
[310206076,1704400284770,-500.0,0.00034794,2]
[310206077,1704400284780,-500.0,0.00034794,2]
[310206078,1704400284789,-500.0,0.00034794,2]
[310206079,1704400284798,-500.0,0.00034794,2]
[310206080,1704400284808,-500.0,0.00034794,2]
[310206081,1704400284817,-2813.94,0.00034794,2]
[310206082,1704400284827,-500.0,0.00034794,2]
[310206083,1704400284836,-500.0,0.00034794,2]
[310206084,1704400284845,-500.0,0.00034794,2]
[310206085,1704400284857,-500.0,0.00034794,2]
[310206086,1704400284866,-1043.97,0.00034794,2]
[310206087,1704400284876,-815.95,0.00034794,2]
[310206088,1704400284886,-4226.54,0.00034794,2]
[310206089,1704400284895,-579.28,0.00034794,2]
[310206090,1704400284905,-500.0,0.00034794,2]
[310206091,1704400284914,-500.0,0.00034794,2]
[310206092,1704400284924,-500.0,0.00034794,2]
[310206093,1704400284933,-500.0,0.00034794,2]
[310206094,1704400284943,-500.0,0.00034794,2]
[310206095,1704400284953,-500.93,0.00034794,2]
[310206096,1704400284962,-1545.25,0.00034794,2]
[310206097,1704400284971,-500.0,0.00034794,2]
[310206098,1704400284981,-896.7,0.00034794,2]
[310206099,1704400284990,-500.0,0.00034794,2]
[310206100,1704400285000,-500.0,0.00034794,2]
[310206101,1704400285009,-1118.72,0.00034794,2]
[310206102,1704400285018,-766.02,0.00034794,2]
[310206103,1704400285028,-525.53,0.00034794,2]
[310206104,1704400285038,-1839.95,0.00034794,2]
[310206105,1704400285047,-1961.18,0.00034794,2]
[310206106,1704400285057,-666.57,0.00034794,2]
[310206107,1704400285067,-500.0,0.00034794,2]
[310206108,1704400285076,-650.88,0.00034794,2]
[310206109,1704400285086,-560.08,0.00034794,2]
[310206110,1704400285095,-1047.53,0.00034794,2]
[310206111,1704400285104,-2743.39,0.00034794,2]
[310206112,1704400285113,-500.0,0.00034794,2]
[310206113,1704400285123,-6488.11,0.00034794,2]
[310206114,1704400285133,-1207.75,0.00034794,2]
[310206115,1704400285142,-500.0,0.00034794,2]
[310206116,1704400285152,-802.32,0.00034794,2]
[310206117,1704400285162,-500.0,0.00034794,2]
[310206118,1704400285172,-500.0,0.00034794,2]
[310206119,1704400285181,-2300.26,0.00034794,2]
[310206120,1704400285192,-500.0,0.00034794,2]
[310206121,1704400285202,-2212.73,0.00034794,2]
[310206122,1704400285211,-564.62,0.00034794,2]
[310206123,1704400285221,-500.0,0.00034794,2]
[310206124,1704400285230,-500.0,0.00034794,2]
[310206125,1704400285241,-8818.63,0.00034794,2]
[310206126,1704400285251,-554.47,0.00034794,2]
[310206127,1704400285260,-547.95,0.00034794,2]
[310206128,1704400285269,-500.0,0.00034794,2]
[310206129,1704400285279,-1988.3,0.00034794,2]
[310206130,1704400285289,-500.0,0.00034794,2]
[310206131,1704400285299,-500.0,0.00034794,2]
[310206132,1704400285308,-1033.94,0.00034794,2]
[310206133,1704400285318,-500.0,0.00034794,2]
[310206134,1704400285327,-8023.99,0.00034794,2]
[310206135,1704400285337,-2729.72,0.00034794,2]
[310206136,1704400285346,-392.95922026,0.00034794,2]
[310206137,1704400285356,-500.0,0.00034794,2]
[310206138,1704400285365,-1421.2,0.00034794,2]
[310206139,1704400285374,-2075.81,0.00034794,2]
[310206140,1704400285385,-500.0,0.00034794,2]
[310206141,1704400285394,-2507.15,0.00034794,2]
[310206142,1704400285405,-1492.24,0.00034794,2]
[310206143,1704400285414,-500.0,0.00034794,2]
[310206144,1704400285423,-500.0,0.00034794,2]
[310206145,1704400285433,-500.0,0.00034794,2]
[310206146,1704400285442,-500.0,0.00034794,2]
[310206147,1704400285453,-5784.19,0.00034794,2]
[310206148,1704400285464,-1148.25,0.00034794,2]
[310206149,1704400285474,-500.0,0.00034794,2]
[310206150,1704400285483,-500.0,0.00034794,2]
[310206151,1704400285493,-512.73,0.00034794,2]
[310206152,1704400285503,-500.08,0.00034794,2]
[310206153,1704400285512,-714.23,0.00034794,2]
[310206154,1704400285522,-500.0,0.00034794,2]
[310206155,1704400285532,-249.4587824,0.00034794,2]
[310206156,1704400285541,-500.0,0.00034794,2]
[310206157,1704400285551,-500.0,0.00034794,2]
[310206158,1704400285561,-500.0,0.00034794,2]
[310206159,1704400285570,-582.44,0.00034794,2]
[310206160,1704400285580,-500.0,0.00034794,2]
[310206161,1704400285591,-500.0,0.00034794,2]
[310206162,1704400285600,-500.0,0.00034794,2]
[310206163,1704400285610,-565.27,0.00034794,2]
[310206164,1704400285620,-799.36,0.00034794,2]
[310206165,1704400285630,-500.0,0.00034794,2]
[310206166,1704400285640,-500.0,0.00034794,2]
[310206167,1704400285650,-500.0,0.00034794,2]
[310206168,1704400285660,-500.0,0.00034794,2]
[310206169,1704400285670,-500.0,0.00034794,2]
[310206170,1704400285681,-1291.64,0.00034794,2]
[310206171,1704400285691,-1533.04,0.00034794,2]
[310206172,1704400285701,-654.95,0.00034794,2]
[310206173,1704400285712,-500.0,0.00034794,2]
[310206174,1704400285721,-1046.38,0.00034794,2]
[310206175,1704400285732,-500.0,0.00034794,2]
[310206176,1704400285742,-1168.15,0.00034794,2]
[310206177,1704400285754,-1279.36,0.00034794,2]
[310206178,1704400285764,-500.0,0.00034794,2]
[310206179,1704400285775,-500.0,0.00034794,2]
[310206180,1704400285784,-774.31,0.00034794,2]
[310206181,1704400285794,-500.0,0.00034794,2]
[310206182,1704400285803,-1178.66,0.00034794,2]
[310206183,1704400285812,-2705.72,0.00034794,2]
[310206184,1704400285822,-500.0,0.00034794,2]
[310206185,1704400285831,-540.01,0.00034794,2]
[310206186,1704400285841,-500.0,0.00034794,2]
[310206187,1704400285852,-800.68,0.00034794,2]
[310206188,1704400285863,-683.02,0.00034794,2]
[310206189,1704400285873,-500.0,0.00034794,2]
[310206190,1704400285883,-1033.15,0.00034794,2]
[310206191,1704400285894,-500.0,0.00034794,2]
[310206192,1704400285902,-500.0,0.00034794,2]
[310206193,1704400285911,-664.5,0.00034794,2]
[310206194,1704400285919,-5429.5,0.00034794,2]
[310206195,1704400285928,-787.99,0.00034794,2]
[310206196,1704400285938,-500.0,0.00034794,2]
[310206197,1704400285947,-500.0,0.00034794,2]
[310206198,1704400285957,-1185.9,0.00034794,2]
[310206199,1704400285966,-500.0,0.00034794,2]
[310206200,1704400285975,-502.99,0.00034794,2]
[310206201,1704400285984,-803.67,0.00034794,2]
[310206202,1704400285995,-500.0,0.00034794,2]
[310206203,1704400286005,-703.08,0.00034794,2]
[310206204,1704400286015,-931.91,0.00034794,2]
[310206205,1704400286025,-500.0,0.00034794,2]
[310206206,1704400286035,-500.0,0.00034794,2]
[310206207,1704400286045,-3045.47,0.00034794,2]
[310206208,1704400286054,-500.0,0.00034794,2]
[310206209,1704400286064,-500.0,0.00034794,2]
[310206210,1704400286073,-924.28,0.00034794,2]
[310206211,1704400286085,-612.45,0.00034794,2]
[310206212,1704400286095,-500.0,0.00034794,2]
[310206213,1704400286105,-1664.58,0.00034794,2]
[310206214,1704400286115,-1719.17,0.00034794,2]
[310206215,1704400286124,-500.0,0.00034794,2]
[310206216,1704400286133,-650.67,0.00034794,2]
[310206217,1704400286145,-837.7,0.00034794,2]
[310206218,1704400286154,-651.85,0.00034794,2]
[310206219,1704400286164,-1763.88,0.00034794,2]
[310206220,1704400286174,-500.0,0.00034794,2]
[310206221,1704400286183,-500.0,0.00034794,2]
[310206222,1704400286192,-5455.26,0.00034794,2]
[310206223,1704400286202,-595.32,0.00034794,2]
[310206224,1704400286212,-500.0,0.00034794,2]
[310206225,1704400286221,-500.0,0.00034794,2]
[310206226,1704400286230,-864.85,0.00034794,2]
[310206227,1704400286240,-1546.03,0.00034794,2]
[310206228,1704400286249,-500.0,0.00034794,2]
[310206229,1704400286259,-618.44,0.00034794,2]
[310206230,1704400286268,-500.0,0.00034794,2]
[310206231,1704400286278,-1928.75,0.00034794,2]
[310206232,1704400286287,-500.0,0.00034794,2]
[310206233,1704400286297,-500.0,0.00034794,2]
[310206234,1704400286306,-575.7,0.00034794,2]
[310206235,1704400286316,-589.02,0.00034794,2]
[310206236,1704400286325,-2873.21,0.00034794,2]
[310206237,1704400286334,-500.0,0.00034794,2]
[310206238,1704400286344,-500.0,0.00034794,2]
[310206239,1704400286353,-501.82,0.00034794,2]
[310206240,1704400286363,-500.0,0.00034794,2]
[310206241,1704400286374,-500.0,0.00034794,2]
[310206242,1704400286384,-500.0,0.00034794,2]
[310206243,1704400286393,-500.0,0.00034794,2]
[310206244,1704400286402,-902.0,0.00034794,2]
[310206245,1704400286412,-500.0,0.00034794,2]
[310206246,1704400286421,-1565.07,0.00034794,2]
[310206247,1704400286431,-1472.89,0.00034794,2]
[310206248,1704400286440,-6496.65,0.00034794,2]
[310206249,1704400286449,-500.0,0.00034794,2]
[310206250,1704400286460,-864.86,0.00034794,2]
[310206251,1704400286469,-500.0,0.00034794,2]
[310206252,1704400286478,-500.0,0.00034794,2]
[310206253,1704400286488,-500.0,0.00034794,2]
[310206254,1704400286497,-500.0,0.00034794,2]
[310206255,1704400286506,-500.0,0.00034794,2]
[310206256,1704400286515,-500.0,0.00034794,2]
[310206257,1704400286525,-416.22,0.00034794,2]
[310206258,1704400286535,-659.36,0.00034794,2]
[310206259,1704400286544,-539.42,0.00034794,2]
[310206260,1704400286553,-2834.51,0.00034794,2]
[310206261,1704400286563,-500.0,0.00034794,2]
[310206262,1704400286573,-535.67,0.00034794,2]
[310206263,1704400286582,-500.0,0.00034794,2]
[310206264,1704400286591,-772.31,0.00034794,2]
[310206265,1704400286601,-1511.83,0.00034794,2]
[310206266,1704400286610,-730.25,0.00034794,2]
[310206267,1704400286619,-500.0,0.00034794,2]
[310206268,1704400286628,-500.0,0.00034794,2]
[310206269,1704400286637,-597.99,0.00034794,2]
[310206270,1704400286646,-1373.46,0.00034794,2]
[310206271,1704400286655,-500.0,0.00034794,2]
[310206272,1704400286664,-500.0,0.00034794,2]
[310206273,1704400286674,-1411.58,0.00034794,2]
[310206274,1704400286683,-500.0,0.00034794,2]
[310206275,1704400286692,-844.92,0.00034794,2]
[310206276,1704400286701,-1122.72,0.00034794,2]
[310206277,1704400286712,-197.66616623,0.00034794,2]
[310206278,1704400286721,-500.0,0.00034794,2]
[310206279,1704400286731,-938.79,0.00034794,2]
[310206280,1704400286740,-700.27,0.00034794,2]
[310206281,1704400286751,-500.0,0.00034794,2]
[310206282,1704400286762,-500.0,0.00034794,2]
[310206283,1704400286772,-2603.65,0.00034794,2]
[310206284,1704400286782,-500.0,0.00034794,2]
[310206285,1704400286792,-500.0,0.00034794,2]
[310206286,1704400286802,-500.0,0.00034794,2]
[310206287,1704400286814,-690.56,0.00034794,2]
[310206288,1704400286824,-500.0,0.00034794,2]
[310206289,1704400286834,-1114.57,0.00034794,2]
[310206290,1704400286843,-1863.03,0.00034794,2]
[310206291,1704400286855,-500.0,0.00034794,2]
[310206292,1704400286865,-625.26,0.00034794,2]
[310206293,1704400287024,-500.0,0.00034794,2]
[310206294,1704400287035,-500.0,0.00034794,2]
[310206295,1704400287045,-1822.1,0.00034794,2]
[310206296,1704400287055,-500.0,0.00034794,2]
[310206297,1704400287064,-524.64,0.00034794,2]
[310206298,1704400287074,-715.91,0.00034794,2]